bitfinex/quotes_ETHUSD_20240821
["timestamp","ask_amount","ask_price","bid_price","bid_amount"]
[1724251026617,3.82668,2613.3,2612.6,3.8275]
[1724251026822,3.82672,2613.2,2612.4,3.82783]
[1724251027116,3.82742,2612.8,2611.6,3.82895]
[1724251027347,3.0,2613.1,2612.4,3.8278]
[1724251027550,3.0,2613.1,2612.0,3.82841]
[1724251027731,3.0,2613.1,2611.6,0.382895]
[1724251027732,3.0,2613.1,2612.4,3.82785]
[1724251027963,3.0,2613.1,2612.2,3.82809]
[1724251027964,2.424,2613.7,2612.2,3.82817]
[1724251028119,3.82645,2613.4,2612.6,3.82747]
[1724251028324,3.82668,2613.3,2612.6,3.82747]
[1724251028618,2.424,2613.7,2613.2,3.82663]
[1724251028976,2.424,2613.7,2613.1,3.82677]
[1724251029279,2.424,2613.7,2612.4,0.7]
[1724251029280,2.424,2613.7,2613.2,0.55]
[1724251029486,3.82551,2614.1,2613.4,3.82637]
[1724251029641,2.3982,2614.7,2613.9,3.82566]
[1724251029964,0.382435,2614.8,2613.5,4.835377]
[1724251029965,7.64803,2615.1,2614.3,3.82509]
[1724251030175,3.9484298,2615.2,2614.5,3.8248]
[1724251030469,0.1246198,2615.2,2613.6,0.7]
[1724251030726,0.1246198,2615.2,2614.3,3.82508]
[1724251030727,3.9485098,2615.2,2614.3,3.82508]
[1724251031027,3.9485098,2615.2,2614.4,0.55]
[1724251031171,3.8241,2615.0,2614.4,0.55]
[1724251031367,0.1246198,2615.2,2614.6,3.82456]
[1724251031572,0.1246198,2615.2,2615.0,3.82405]
[1724251031839,3.82152,2616.8,2615.3,3.82359]
[1724251031974,2.2664,2616.9,2615.3,3.82359]
[1724251031975,3.82161,2616.7,2616.0,3.82262]
[1724251032171,3.82119,2617.0,2616.1,4.37237]
[1724251032374,3.82142,2616.9,2616.1,0.55]
[1724251032674,6.15306,2617.4,2616.1,0.55]
[1724251032675,3.82089,2617.2,2616.1,0.55]
[1724251032914,6.15299,2617.4,2616.6,3.82174]
[1724251033127,0.23324,2617.3,2616.2,0.07428023]
[1724251033282,2.3324,2617.4,2616.7,0.07384989]
[1724251033283,3.82146,2616.8,2616.7,0.07384989]
[1724251033485,0.1246198,2617.8,2616.0,3.82249]
[1724251033486,3.82103,2617.1,2616.0,3.82249]
[1724251033715,2.4319,2617.7,2616.7,0.07384989]
[1724251033931,3.82206,2616.4,2615.2,3.82378]
[1724251034223,6.25336,2616.8,2615.1,0.3837]
[1724251034224,2.4319,2616.8,2615.1,0.3837]
[1724251034450,3.82233,2616.3,2615.3,3.89865526]
[1724251034596,3.82116,2617.1,2615.9,3.82265]
[1724251034798,3.82119,2617.0,2615.9,3.82276]
[1724251034994,3.82162,2616.7,2616.0,0.07281278]
[1724251035202,3.82105,2617.1,2616.1,3.82243]
[1724251035401,3.82103,2617.1,2616.2,0.0726406]
[1724251035645,3.82177,2616.6,2616.2,0.0726406]
[1724251035850,2.3654,2617.5,2615.7,6.82301]
[1724251035851,0.2621052,2617.4,2615.7,6.82305]
[1724251036002,3.82142,2616.9,2616.0,3.82259]
[1724251036203,3.81944,2618.2,2615.8,0.62643532]
[1724251036204,2.4546,2618.0,2616.6,3.82172]
[1724251036404,3.9446198,2617.8,2616.7,4.37146]
[1724251036602,0.1246198,2617.8,2616.7,0.61993579]
[1724251036925,0.1246198,2617.8,2616.9,3.82128]
[1724251037131,0.1246198,2617.8,2616.7,0.06993579]
[1724251037132,3.82048,2617.5,2616.7,0.06993579]
[1724251037336,2.3846,2617.6,2615.6,2.3167]
[1724251037501,3.82191,2616.5,2615.6,6.13978]
[1724251037701,2.3846,2617.6,2616.2,3.82229]
[1724251037702,3.82074,2617.3,2616.2,3.82229]
[1724251038015,3.82142,2616.9,2616.1,3.82247]
[1724251038197,3.82079,2617.3,2616.1,4.204717]
[1724251038396,0.76452778,2617.8,2616.1,4.204717]
[1724251038397,3.82016,2617.7,2616.4,3.82199]
[1724251038613,3.82117,2617.0,2616.2,3.82229]
[1724251038850,3.8209,2617.2,2616.1,0.382247]
[1724251039063,3.82131,2616.9,2616.2,0.55]
[1724251039223,3.82146,2616.8,2616.2,0.55]
[1724251039404,3.82263,2616.0,2615.6,0.3837]
[1724251039604,0.382131,2616.9,2615.1,2.3738]
[1724251039605,4.203451,2616.9,2615.1,2.3738]
[1724251039804,4.2418051,2616.8,2615.9,3.82267]
[1724251040006,3.82242,2616.2,2615.3,4.5236]
[1724251040244,3.82194,2616.5,2615.3,0.7764457]
[1724251040399,2.2671,2617.1,2615.9,3.82273]
[1724251040601,3.82136,2616.9,2615.7,3.82301]
[1724251040840,3.82136,2616.9,2615.6,0.7]
[1724251040841,3.82107,2617.1,2616.2,3.82219]
[1724251041111,3.82107,2617.1,2616.0,3.146]
[1724251041112,3.82099,2617.2,2616.0,2.446]
[1724251041308,2.4838,2617.6,2615.5,2.6974]
[1724251041523,3.82122,2617.0,2615.5,2.3137]
[1724251041706,0.382122,2616.9,2615.6,0.7]
[1724251041905,3.82112,2617.1,2615.2,4.06109]
[1724251042103,3.82112,2617.1,2615.0,2.3137]
[1724251042104,3.82275,2616.0,2615.0,2.3137]
[1724251042304,3.82215,2616.4,2614.8,0.3837]
[1724251042533,3.82367,2615.3,2614.5,2.3137]
[1724251042851,3.82348,2615.5,2614.7,3.82442]
[1724251043011,3.82348,2615.5,2614.6,0.2751201]
[1724251043214,2.3023,2616.0,2614.4,0.437501]
[1724251043215,3.82398,2615.1,2614.4,0.437501]
[1724251043427,3.82398,2615.1,2614.1,3.82529]
[1724251043636,3.82449,2614.8,2613.9,3.82566]
[1724251043952,3.82397,2615.1,2613.9,0.46669084]
[1724251044134,3.82367,2615.3,2614.5,3.8247]
[1724251044318,3.8241,2615.0,2614.1,4.20904]
[1724251044649,3.82448,2614.8,2613.9,3.82558]
[1724251044860,3.82448,2614.8,2614.2,0.06871341]
[1724251045365,3.82448,2614.8,2613.8,2.3137]
[1724251045366,3.82385,2615.2,2614.3,0.0686272]
[1724251045539,3.8243,2614.9,2614.3,0.0686272]
[1724251045855,3.82443,2614.8,2613.9,7.65127]
[1724251046161,3.82443,2614.8,2613.1,3.82674]
[1724251046162,3.82482,2614.5,2614.4,0.06854099]
[1724251046315,3.82513,2614.3,2613.6,0.46669084]
[1724251046507,3.82513,2614.3,2613.6,0.42929508]
[1724251046758,3.82513,2614.3,2613.0,0.3837]
[1724251046759,6.29142,2615.1,2613.0,0.3837]
[1724251046939,3.82536,2614.2,2613.1,3.82677]
[1724251047258,3.82699,2613.1,2612.2,3.82808]
[1724251047565,3.82645,2613.4,2612.6,3.8275]
[1724251047853,3.82749,2612.7,2612.3,0.632718]
[1724251048052,3.82749,2612.7,2611.8,0.46669084]
[1724251048253,3.82692,2613.1,2612.3,3.82801]
[1724251048554,3.82692,2613.1,2611.6,3.82896]
[1724251048555,2.4065,2613.0,2611.6,3.82896]
[1724251048717,2.4065,2613.0,2611.1,2.2918]
[1724251048718,3.82787,2612.5,2611.7,3.8289]
[1724251049057,3.82755,2612.7,2610.4,2.9918]
[1724251049058,2.4065,2612.1,2610.4,2.9918]
[1724251049209,3.82874,2611.9,2611.1,3.82977]
[1724251049427,6.23488,2612.1,2611.2,0.382977]
[1724251049428,3.8288,2611.8,2611.2,0.382977]
[1724251049632,3.82808,2612.3,2611.5,3.82907]
[1724251049875,3.8282,2612.2,2611.3,3.82949]
[1724251050166,3.82834,2612.1,2611.4,3.82934]
[1724251050367,3.82835,2612.1,2610.9,3.83007]
[1724251050593,3.82864,2611.9,2611.2,3.82955]
[1724251050769,3.82864,2611.9,2611.0,3.82995]
[1724251050770,3.82882,2611.8,2611.0,3.82995]
[1724251050950,8.20596,2612.4,2611.0,0.766017]
[1724251050951,3.82824,2612.2,2611.0,0.766017]
[1724251051149,7.378,2612.4,2611.0,0.766017]
[1724251051150,3.82794,2612.4,2611.6,3.82901]
[1724251051330,2.2709,2612.6,2611.0,3.82985]
[1724251051537,3.82877,2611.9,2611.0,3.82985]
[1724251051775,3.82852,2612.0,2611.2,3.82955]
[1724251051993,6.82801,2612.4,2611.5,3.82919]
[1724251052151,2.2709,2612.6,2611.7,3.82882]
[1724251052349,2.2709,2612.6,2611.2,3.82961]
[1724251052350,3.82858,2612.0,2611.2,3.82961]
[1724251052552,3.82845,2612.1,2611.2,4.212571]
[1724251052945,3.82845,2612.1,2611.4,3.82936]
[1724251053229,6.09857,2612.6,2611.5,3.82908]
[1724251053230,2.2709,2612.6,2611.5,3.82908]
[1724251053391,2.2709,2612.6,2610.8,3.0]
[1724251053392,3.0,2612.5,2610.2,0.7]
[1724251053687,3.8284,2612.1,2610.8,3.83018]
[1724251053852,2.2709,2612.6,2611.4,3.82923]
[1724251054054,2.2709,2612.6,2611.2,3.82958]
[1724251054055,2.2709,2612.6,2611.8,3.82864]
[1724251054286,3.82795,2612.4,2611.0,3.82994]
[1724251054506,3.82825,2612.2,2611.5,3.82911]
[1724251054670,0.609885,2612.4,2611.3,3.82945]
[1724251054671,3.82857,2612.0,2611.3,3.82945]
[1724251054984,3.82836,2612.1,2611.1,4.212754]
[1724251054985,3.82865,2611.9,2611.2,3.82951]
[1724251055192,3.82935,2611.5,2610.7,3.83029]
[1724251055485,3.82935,2611.5,2610.7,3.83027]
[1724251055652,3.82805,2612.3,2610.7,3.83027]
[1724251055653,3.829,2611.7,2610.7,4.236215]
[1724251055865,3.82946,2611.4,2610.7,4.236215]
[1724251056051,3.82887,2611.8,2611.2,3.82962]
[1724251056253,3.82885,2611.8,2610.7,0.405945]
[1724251056452,3.8296,2611.3,2610.5,0.22918]
[1724251056659,3.8296,2611.3,2610.6,3.8305]
[1724251056884,6.20597,2611.9,2610.6,3.8305]
[1724251056885,3.82937,2611.4,2610.6,3.83045]
[1724251057135,3.82937,2611.4,2610.7,3.83029]
[1724251057260,3.82937,2611.4,2610.4,3.83072]
[1724251057261,3.82975,2611.2,2610.4,3.83072]
[1724251057588,3.82975,2611.2,2610.5,3.83067]
[1724251057756,3.82975,2611.2,2610.6,3.83049]
[1724251057962,3.82975,2611.2,2609.8,1.09449917]
[1724251057963,3.82888,2611.8,2610.8,3.83011]
[1724251058180,3.82906,2611.7,2611.0,3.82985]
[1724251058363,3.82906,2611.7,2610.9,0.933011]
[1724251058364,6.206,2611.9,2611.1,4.3798]
[1724251058597,6.206,2611.9,2611.1,3.82971]
[1724251058921,3.82841,2612.1,2610.9,0.933011]
[1724251059062,3.82821,2612.2,2611.5,3.82921]
[1724251059269,3.82821,2612.2,2611.3,3.82945]
[1724251059466,3.82859,2612.0,2611.3,3.82945]
[1724251059793,4.378,2612.9,2610.7,8.04431]
[1724251059794,2.4307,2611.7,2610.7,8.04431]
[1724251060108,7.65922,2611.3,2610.5,7.66113]
[1724251060309,0.24307,2611.6,2610.8,3.83014]
[1724251060310,3.82927,2611.5,2610.8,3.83014]
[1724251060517,3.82927,2611.5,2610.6,3.83052]
[1724251060518,3.82842,2612.1,2611.4,3.82927]
[1724251060718,6.23902,2612.3,2611.6,3.82906]
[1724251060941,6.23902,2612.3,2611.4,3.82927]
[1724251060942,3.82845,2612.1,2611.4,3.82927]
[1724251061082,0.382692,2613.1,2611.5,4.212137]
[1724251061083,3.82748,2612.7,2611.5,4.212137]
[1724251061283,6.11869,2613.1,2612.2,3.82807]
[1724251061496,6.11869,2613.1,2612.4,3.82778]
[1724251061727,2.2918,2613.1,2612.4,3.82778]
[1724251062041,3.82585,2613.8,2612.8,3.82717]
[1724251062042,2.2918,2613.5,2612.8,3.82717]
[1724251062236,6.11745,2614.0,2613.2,3.82669]
[1724251062531,3.82571,2613.9,2613.2,3.82669]
[1724251062699,6.11749,2614.0,2613.2,3.82669]
[1724251062700,2.2918,2614.0,2613.2,4.592057]
[1724251062881,3.82503,2614.4,2613.5,3.82614]
[1724251063083,2.2918,2614.6,2613.8,3.82584]
[1724251063443,2.2918,2614.6,2613.6,0.06959427]
[1724251063623,2.2918,2614.6,2612.7,3.0]
[1724251063624,3.82555,2614.0,2613.9,0.06933553]
[1724251063934,3.82541,2614.1,2613.0,4.21071]
[1724251064137,3.82621,2613.6,2612.8,3.82728]
[1724251064323,3.82621,2613.6,2612.7,3.82741]
[1724251064324,3.82627,2613.6,2612.7,3.82741]
[1724251064500,3.8257,2613.9,2612.5,2.4371]
[1724251064706,2.89188973,2614.6,2612.8,3.82726]
[1724251064707,3.82614,2613.6,2612.8,3.82726]
[1724251065027,3.82517,2614.3,2612.8,4.264986]
[1724251065233,3.82603,2613.7,2612.8,3.82726]
[1724251065465,2.3206,2613.9,2612.4,4.210618]
[1724251065735,5.3206,2613.9,2612.5,0.07654982]
[1724251065937,2.3206,2613.9,2613.2,3.82661]
[1724251066086,2.3206,2613.9,2612.8,0.3837]
[1724251066285,6.1463,2613.9,2613.1,3.82686]
[1724251066700,6.1463,2613.9,2613.0,3.8269]
[1724251066884,3.82586,2613.8,2613.0,4.59232]
[1724251067448,2.3206,2613.9,2612.4,0.382778]
[1724251067582,3.82634,2613.5,2612.6,3.8276]
[1724251067929,3.82614,2613.6,2612.7,3.82734]
[1724251068134,3.82556,2614.0,2612.9,3.82711]
[1724251068369,4.378,2614.3,2612.7,3.82743]
[1724251068370,3.82614,2613.6,2612.7,3.82743]
[1724251068501,3.82631,2613.5,2612.7,3.82743]
[1724251068845,3.82668,2613.3,2612.5,3.82775]
[1724251069336,3.82673,2613.2,2612.4,3.82789]
[1724251069541,3.82673,2613.2,2612.5,3.82773]
[1724251069891,3.82646,2613.4,2612.6,3.82758]
[1724251070095,3.82629,2613.5,2612.8,3.8273]
[1724251070338,3.82599,2613.7,2613.0,3.82701]
[1724251070490,3.82599,2613.7,2612.8,3.8273]
[1724251070690,3.82624,2613.6,2612.6,3.82757]
[1724251070891,3.82684,2613.2,2612.4,3.82786]
[1724251071095,5.3206,2613.9,2612.7,3.82733]
[1724251071096,3.82649,2613.4,2612.7,3.82733]
[1724251071492,3.8269,2613.1,2612.2,3.82805]
[1724251071694,2.4479,2613.7,2612.5,3.82764]
[1724251071927,2.4479,2613.7,2612.3,3.82789]
[1724251072142,3.82703,2613.0,2612.3,3.82789]
[1724251072461,3.82746,2612.7,2611.9,3.82851]
[1724251072659,3.82845,2612.1,2611.3,3.82941]
[1724251072868,3.82865,2611.9,2611.1,3.82978]
[1724251073075,3.82862,2612.0,2610.5,2.3873]
[1724251073287,3.82849,2612.0,2611.2,3.82956]
[1724251073413,3.82828,2612.2,2611.5,3.82908]
[1724251073609,3.82794,2612.4,2611.1,3.82977]
[1724251073610,3.82858,2612.0,2611.1,3.82977]
[1724251073915,4.211428,2612.0,2610.6,0.3837]
[1724251074115,4.211428,2612.0,2611.1,7.65947]
[1724251074311,3.82837,2612.1,2611.3,3.82937]
[1724251074551,3.82837,2612.1,2611.3,7.65878]
[1724251074759,3.82822,2612.2,2611.3,7.65878]
[1724251074760,3.82822,2612.2,2611.4,3.82926]
[1724251074924,3.82819,2612.2,2611.5,3.82916]
[1724251075343,0.62426,2612.5,2611.7,3.82891]
[1724251075344,3.82778,2612.5,2611.7,3.82891]
[1724251075643,2.415,2612.6,2612.0,3.82837]
[1724251076062,2.415,2612.6,2612.1,0.06993532]
[1724251076063,3.82785,2612.5,2612.1,0.06993532]
[1724251076226,6.24272,2612.6,2612.1,0.06993532]
[1724251076430,3.82785,2612.5,2611.8,3.82864]
[1724251076625,3.82785,2612.5,2612.2,0.06984897]
[1724251076864,2.415,2612.6,2612.1,3.82833]
[1724251077028,2.415,2612.6,2611.9,3.82851]
[1724251077380,6.82738,2612.8,2611.8,4.211554]
[1724251077556,3.82798,2612.4,2612.0,0.07002168]
[1724251077729,3.82759,2612.7,2611.8,3.82874]
[1724251077926,3.0,2612.8,2612.1,0.06993532]
[1724251078157,3.8275,2612.7,2611.7,3.82882]
[1724251078360,2.2769,2612.9,2611.7,3.82882]
[1724251078361,3.82775,2612.5,2612.2,0.07029788]
[1724251078558,3.82804,2612.3,2611.5,3.82909]
[1724251078874,3.82762,2612.6,2612.3,0.07021154]
[1724251079078,3.82779,2612.5,2611.9,3.82849]
[1724251079243,3.82775,2612.5,2612.4,0.0701252]
[1724251079443,7.90569,2612.8,2611.4,3.82926]
[1724251079691,3.399259,2612.7,2611.5,3.90000912]
[1724251079852,3.82816,2612.3,2611.5,3.90000912]
[1724251080052,3.82816,2612.3,2611.1,3.82975]
[1724251080309,3.82782,2612.5,2611.8,3.82868]
[1724251080452,3.82805,2612.3,2611.5,3.82914]
[1724251080659,3.82871,2611.9,2611.2,3.82964]
[1724251081004,3.82871,2611.9,2610.7,2.3162]
[1724251081005,3.82873,2611.9,2611.3,3.90067618]
[1724251081406,3.82905,2611.7,2611.3,0.07118618]
[1724251081553,3.82905,2611.7,2610.6,0.3837]
[1724251081759,6.932165,2611.9,2611.4,0.07185347]
[1724251082057,3.82917,2611.6,2610.8,3.83011]
[1724251082259,2.3378,2611.9,2611.5,0.07192789]
[1724251082555,6.783067,2611.9,2611.6,0.07184149]
[1724251082755,3.82892,2611.7,2611.0,3.82985]
[1724251082963,2.3197,2612.4,2611.7,0.07175511]
[1724251083165,3.00671179,2612.4,2611.1,3.82973]
[1724251083418,3.82904,2611.7,2610.9,3.82997]
[1724251083604,3.82864,2611.9,2611.3,3.8294]
[1724251083901,3.82841,2612.1,2611.3,3.8294]
[1724251084104,3.00671179,2612.4,2611.6,3.82893]
[1724251084105,3.82812,2612.3,2611.6,3.82893]
[1724251084474,3.82812,2612.3,2611.7,3.82881]
[1724251084857,3.82812,2612.3,2611.4,0.38294]
[1724251084858,2.3197,2612.4,2611.1,3.82972]
[1724251085089,3.82844,2612.1,2611.4,3.82934]
[1724251085304,2.3197,2612.4,2611.1,3.82968]
[1724251085305,3.82814,2612.3,2611.1,3.82968]
[1724251085514,2.3197,2612.4,2611.2,4.45617888]
[1724251085661,3.82755,2612.7,2612.0,3.82843]
[1724251085860,3.82755,2612.7,2611.8,3.82876]
[1724251085861,3.82796,2612.4,2611.8,3.82876]
[1724251086095,3.82796,2612.4,2611.6,3.82903]
[1724251086096,7.65622,2612.3,2611.6,3.82893]
[1724251086260,3.82821,2612.2,2611.6,3.82893]
[1724251086708,3.82781,2612.5,2611.3,6.24091]
[1724251086875,3.82748,2612.7,2612.2,3.82818]
[1724251087076,3.82748,2612.7,2611.8,3.82877]
[1724251087286,3.82748,2612.7,2612.0,3.82847]
[1724251087474,3.82763,2612.6,2612.0,3.82847]
[1724251087669,3.82748,2612.7,2612.1,3.82832]
[1724251087871,3.82722,2612.9,2612.1,3.82824]
[1724251088191,3.82663,2613.3,2612.2,3.82815]
[1724251088385,2.2864,2613.4,2612.3,8.20585]
[1724251088386,3.82703,2613.0,2612.3,8.20585]
[1724251088702,2.2864,2613.4,2612.3,4.3779]
[1724251088703,3.82695,2613.1,2612.3,4.3779]
[1724251088864,3.82695,2613.1,2612.4,4.26564]
[1724251088865,3.82702,2613.0,2612.4,4.26564]
[1724251089069,3.82702,2613.0,2612.5,0.55]
[1724251089500,3.82695,2613.1,2612.5,8.20544]
[1724251089809,3.82666,2613.3,2612.6,3.82757]
[1724251090014,2.2864,2613.4,2612.5,0.55]
[1724251090015,2.2864,2613.4,2612.5,4.37771]
[1724251090168,3.82695,2613.1,2612.5,0.55]
[1724251090370,2.2864,2613.4,2612.6,3.82752]
[1724251090572,2.2864,2613.4,2612.5,0.437795]
[1724251090777,3.82713,2613.0,2612.5,0.387795]
[1724251090986,3.827,2613.1,2612.0,3.82842]
[1724251091190,2.2864,2613.4,2611.8,3.8287]
[1724251091191,3.82787,2612.5,2611.8,3.8287]
[1724251091437,3.82719,2612.9,2611.7,2.4344]
[1724251091438,3.82718,2612.9,2611.7,2.4344]
[1724251091603,2.2864,2613.4,2611.7,2.4344]
[1724251091604,2.2864,2613.4,2612.0,0.7]
[1724251091806,3.82622,2613.6,2612.9,3.82704]
[1724251092004,3.82622,2613.6,2612.8,3.8273]
[1724251092005,3.82639,2613.5,2612.8,3.8273]
[1724251092228,3.82645,2613.4,2612.8,0.765467]
[1724251092426,7.65296,2613.4,2612.8,4.592697]
[1724251092629,3.82622,2613.6,2612.9,4.37713]
[1724251092832,2.4669,2613.9,2613.3,3.8265]
[1724251093009,3.82569,2614.0,2613.2,3.8266]
[1724251093010,3.82597,2613.8,2613.2,3.8266]
[1724251093215,3.82597,2613.8,2613.4,0.06998821]
[1724251093417,3.82597,2613.8,2613.3,0.07007448]
[1724251093699,0.765159,2613.8,2613.4,0.06917341]
[1724251093895,3.82692,2613.1,2612.5,3.8277]
[1724251094100,3.82692,2613.1,2612.6,0.06986378]
[1724251094353,3.82637,2613.5,2612.8,3.82723]
[1724251094647,3.82607,2613.7,2613.1,3.82686]
[1724251094801,3.82578,2613.9,2613.1,3.82675]
[1724251094999,3.82549,2614.1,2613.2,0.06934597]
[1724251095000,3.82557,2614.0,2613.2,0.06934597]
[1724251095217,2.4924,2614.2,2613.2,0.06934597]
[1724251095426,3.82602,2613.7,2613.2,0.06934597]
[1724251095918,3.82635,2613.5,2612.8,3.82728]
[1724251096245,3.82635,2613.5,2612.9,0.06960484]
[1724251096766,7.65402,2613.0,2612.9,0.06960484]
[1724251096951,3.82701,2613.0,2612.0,3.82834]
[1724251097114,3.82744,2612.8,2612.1,0.382834]
[1724251097299,3.82695,2613.1,2612.2,0.07020912]
[1724251097500,3.8271,2613.0,2612.3,3.82799]
[1724251097905,6.6306,2613.3,2612.4,0.07003644]
[1724251097906,3.82731,2612.8,2612.4,0.07003644]
[1724251098102,3.82728,2612.9,2612.2,3.82809]
[1724251098335,3.82728,2612.9,2612.3,0.07012278]
[1724251098556,3.82694,2613.1,2612.4,3.8278]
[1724251098734,3.82674,2613.2,2612.6,3.82751]
[1724251098937,3.82599,2613.7,2612.5,0.61995011]
[1724251099122,3.82599,2613.7,2613.0,3.827]
[1724251099316,3.8263,2613.5,2613.1,0.61943225]
[1724251099652,3.82599,2613.7,2613.1,0.61943225]
[1724251100004,3.82599,2613.7,2613.1,0.69595843]
[1724251100312,3.82599,2613.7,2613.1,0.61943225]
[1724251100703,3.82629,2613.5,2613.1,0.61943225]
[1724251100962,3.82621,2613.6,2613.1,0.06943225]
[1724251101113,3.82621,2613.6,2613.0,3.82699]
[1724251101300,3.82629,2613.5,2612.8,3.8272]
[1724251101506,3.82606,2613.7,2612.9,0.69625996]
[1724251101738,2.4677,2613.8,2612.9,0.69625996]
[1724251101739,3.82572,2613.9,2613.3,3.82649]
[1724251102005,3.82609,2613.7,2613.0,3.89656718]
[1724251102229,3.82609,2613.7,2613.4,0.06926205]
[1724251102547,3.82609,2613.7,2613.5,0.06917579]
[1724251102755,3.82588,2613.8,2613.1,3.82677]
[1724251102961,3.82571,2613.9,2613.6,0.06908953]
[1724251102962,3.82599,2613.7,2613.6,0.06908953]
[1724251103259,3.82599,2613.7,2612.9,3.82715]
[1724251103260,3.8264,2613.5,2612.9,3.82715]
[1724251103470,7.65214,2613.7,2613.6,0.06864625]
[1724251103757,7.65214,2613.7,2612.7,3.82743]
[1724251103758,0.382605,2613.7,2612.7,3.82743]
[1724251103904,3.0,2614.2,2612.5,3.0997313]
[1724251103905,3.82595,2613.8,2612.5,3.0997313]
[1724251104254,3.0,2614.2,2612.9,3.8271]
[1724251104453,3.8261,2613.7,2612.9,3.82708]
[1724251104600,3.8261,2613.7,2613.0,3.89606391]
[1724251104806,3.8261,2613.7,2613.0,0.06916391]
[1724251104807,3.82687,2613.1,2613.0,0.06916391]
[1724251105037,2.4453,2613.6,2612.2,3.82818]
[1724251105038,3.82733,2612.8,2612.2,3.82818]
[1724251105215,3.82733,2612.8,2612.1,6.11774]
[1724251105216,7.65365,2613.2,2612.3,3.82796]
[1724251105436,3.82654,2613.4,2612.5,3.82766]
[1724251105602,3.82658,2613.3,2612.5,3.82766]
[1724251105805,4.20869,2613.7,2612.9,3.82714]
[1724251105806,7.65216,2613.7,2612.9,3.82714]
[1724251106141,7.65216,2613.7,2613.0,0.06916391]
[1724251106142,3.82601,2613.7,2613.0,0.06916391]
[1724251106481,5.4453,2614.1,2613.1,3.82677]
[1724251106482,3.82592,2613.8,2613.1,3.82677]
[1724251106676,5.4453,2614.1,2612.8,2.2814]
[1724251106677,3.82599,2613.7,2612.9,3.82707]
[1724251106826,3.82599,2613.7,2612.8,2.2814]
[1724251106827,3.82639,2613.5,2613.2,0.06899133]
[1724251107244,3.82639,2613.5,2612.9,3.82714]
[1724251107446,7.65277,2613.5,2613.3,0.06890505]
[1724251107679,3.82645,2613.4,2612.8,2.2814]
[1724251107954,3.82645,2613.4,2612.9,0.55]
[1724251108329,3.82638,2613.5,2612.9,0.55]
[1724251108330,7.65281,2613.5,2612.9,0.55]
[1724251108771,3.82662,2613.3,2612.6,3.82749]
[1724251108957,0.765281,2613.5,2612.3,3.82796]
[1724251109276,4.378,2613.8,2611.7,0.7]
[1724251109277,3.82717,2612.9,2612.1,7.65653]
[1724251109485,3.82747,2612.7,2612.1,3.82824]
[1724251109775,3.82747,2612.7,2611.0,7.86388]
[1724251109776,3.82798,2612.4,2611.6,3.82894]
[1724251110336,3.82819,2612.2,2611.6,4.837272]
[1724251110689,3.0,2613.2,2611.6,1.008332]
[1724251110989,3.82832,2612.2,2611.4,6.25434]
[1724251111190,3.82745,2612.7,2612.0,3.82847]
[1724251111372,3.82745,2612.7,2612.0,3.82839]
[1724251111575,6.27554,2613.1,2612.3,3.82799]
[1724251111778,4.378,2613.8,2612.2,2.4691]
[1724251111779,3.82662,2613.3,2612.2,2.4691]
[1724251111976,3.82675,2613.2,2612.6,3.8276]
[1724251112294,3.82666,2613.3,2612.6,3.82751]
[1724251112476,2.4343,2613.6,2612.7,0.932751]
[1724251112658,2.4343,2613.6,2612.7,0.55]
[1724251112659,3.8267,2613.3,2612.7,0.55]
[1724251112989,3.82668,2613.3,2612.7,0.55]
[1724251113177,3.82687,2613.1,2612.7,0.55]
[1724251113497,3.82711,2613.0,2612.3,7.65596]
[1724251113789,3.82649,2613.4,2612.5,3.82768]
[1724251113790,7.65304,2613.4,2612.5,3.82768]
[1724251114003,3.82648,2613.4,2612.5,3.82768]
[1724251114201,2.4343,2613.6,2612.5,3.82768]
[1724251114202,3.82659,2613.3,2612.5,3.82768]
[1724251114500,3.82687,2613.2,2612.5,8.5771536]
[1724251114648,3.82619,2613.6,2612.8,3.8273]
[1724251114851,7.65188,2613.8,2613.1,3.82677]
[1724251115162,2.3256,2614.1,2613.2,0.07652632]
[1724251115379,3.8257,2613.9,2613.2,4.37665]
[1724251115542,3.8257,2613.9,2612.7,3.7]
[1724251115543,3.82653,2613.4,2612.7,3.0]
[1724251115741,2.3256,2613.9,2613.2,3.82669]
[1724251116006,3.82552,2614.1,2613.5,3.82628]
[1724251116163,3.82552,2614.1,2612.9,3.82712]
[1724251116164,3.82564,2614.0,2613.2,3.82671]
[1724251116348,3.82587,2613.8,2613.0,3.82697]
[1724251116657,3.82587,2613.8,2613.1,0.932697]
[1724251116860,3.8256,2614.0,2613.3,3.82654]
[1724251117061,3.82587,2613.8,2613.1,4.209447]
[1724251117259,6.15065,2614.4,2612.7,4.37742]
[1724251117260,3.82581,2613.9,2612.7,4.37742]
[1724251117471,3.82622,2613.6,2612.8,3.0]
[1724251117671,3.82645,2613.4,2612.8,4.283392]
[1724251118186,0.97036,2614.2,2613.0,3.82693]
[1724251118187,3.82588,2613.8,2613.0,3.82693]
[1724251118389,3.82588,2613.8,2612.9,3.82704]
[1724251118587,3.82614,2613.6,2613.0,1.3610432]
[1724251118903,7.65184,2613.8,2613.0,5.1879632]
[1724251119071,4.79566,2614.2,2613.0,1.3610432]
[1724251119272,3.82638,2613.5,2613.0,1.3610432]
[1724251119507,3.82608,2613.7,2613.0,1.3610432]
[1724251119676,3.82608,2613.7,2613.1,0.51881732]
[1724251119868,3.82608,2613.7,2613.1,4.34566732]
[1724251120083,7.65221,2613.7,2613.1,4.34566732]